{"text_format":"1","workbook":"xlsx","n_sheets":2,"sheets":["QUESTIONARIO","result"],"not_rendered":{"charts":0,"images":3,"macros":1,"external_links":0,"defined_names":1,"comments":1,"pivot_tables":0},"unopened":[],"bounds":{"document_bytes":16777216,"sheet_cells":100000,"rows_first":2000,"rows_last":500,"rows_between":2000,"halvings":0,"cell_chars":16384,"cell_head_chars":4096},"cells_cut":0,"cells_raw":0,"read":"whole","date_system":"1900"}

{"sheet":"QUESTIONARIO","index":0,"n_rows":428,"n_cols":24,"rows_kept":428,"cut":false,"hidden":false,"merged":[[71,3,72,19],[70,3,70,19],[78,3,78,19],[130,4,131,18],[79,3,80,19],[82,1,83,19],[86,2,91,18],[92,2,95,18],[96,2,99,18],[62,3,62,19],[66,3,66,19],[32,3,32,19],[43,3,44,19],[47,3,48,19],[37,1,38,18],[40,1,40,19],[55,3,56,19],[152,4,153,18],[156,1,157,18],[2,0,2,19],[4,0,4,19],[6,1,10,18],[11,1,15,18],[100,2,103,18],[93,19,94,19],[97,19,98,19],[101,19,102,19],[35,3,35,19],[42,3,42,19],[46,3,46,19],[50,3,50,19],[54,3,54,19],[58,3,58,19],[17,13,17,18],[19,13,19,18],[21,1,23,18],[25,1,26,18],[29,3,29,19],[51,3,52,19],[59,3,60,19],[63,3,64,19],[67,3,68,19],[233,10,233,13],[200,1,201,18],[219,7,219,18],[222,7,222,18],[176,12,176,18],[174,7,174,18],[162,7,162,18],[124,1,125,18],[104,2,107,18],[137,7,137,18],[140,3,141,19],[146,4,147,18],[424,3,425,19],[382,3,383,19],[386,3,387,19],[413,3,414,19],[377,1,379,18],[385,3,385,19],[392,4,393,18],[398,4,399,18],[412,3,412,19],[423,3,423,19],[408,6,408,18],[374,3,375,19],[370,1,370,8],[74,3,74,19],[75,3,76,19],[360,1,360,8],[361,1,361,8],[362,1,362,8],[342,1,342,24],[260,1,260,18],[308,3,308,19],[309,3,310,19],[312,1,312,18],[363,1,363,8],[364,1,364,8],[365,1,365,8],[224,10,224,13],[210,8,210,18],[326,1,326,24],[366,1,366,8],[367,1,367,8],[373,3,373,19],[229,10,229,13],[253,3,254,19],[252,3,252,19],[240,4,241,18],[239,4,239,18],[368,1,368,8],[369,1,369,8],[338,1,338,8],[339,1,339,8],[256,1,258,18]]}
["v.1.2"]
[]
["Questionário"]
[]
["Diagnóstico Tecnológico do Sector Corticeiro"]
[]
[null,"Alinhado numa das estratégias que a APCOR e CTCOR definiram para o ano em curso que visa a capacitação e inovação tecnológica do setor nas diferentes fases do processo produtivo e nos diferentes segmentos de produto, a APCOR está a desenvolver com a Universidade Católica do Porto um documento estratégico que terá como objetivo traçar ações e medidas que possam ajudar a aumentar a capacitação tecnológica do sector e desta forma, quer nas empresas quer do CTCOR, e, assim, contribuir para a construção de uma indústria de futuro.\n\nDe forma a suportar esse documento e definir os principais eixos estratégicos, a APCOR e o Centro Tecnológico da Cortiça estão a desenvolver um trabalho conjunto que visa realizar um Diagnóstico Tecnológico do Sector.\nDeste modo, está a ser preparado um questionário com várias temáticas que será a ferramenta fundamental para o levantamento do atual estado das nossas empresas face à dimensão tecnológica. Apelamos, desde já, à sua participação para que o sucesso deste trabalho seja uma realidade. deste trabalho e para o qual vamos pedir o seu apoio. \nA resposta ao questionário é totalmente confidencial, sendo apenas utilizados os dados agregados das respostas. \n \nAgradecemos, desde já, a sua disponibilidade e empenho na boa execução de mais um projeto em prol do sector."]
[]
[]
[]
[]
[null,"O questionário é composto por 3 secções: Atividades (iniciais) Transversais, Atividades Específicas e Atividades (finais) Transversais  (AITransversal, A1, A2, A3,… e AFTransversal).\n\nNenhuma das questões é de resposta obrigatória.\n\nQuando para determinada operação a empresa tiver mais do que uma tipologia de tecnologia disponível, deve assinalar-se a opção mais representativa na realidade da empresa\n\nSolicitar à empresa um email para posterior envio do pdf"]
[]
[]
[]
[]
[]
[null,"Código da empresa:"]
[]
[null,"Técnico CTCOR/APCOR responsável pelo questionário"]
[]
[null,"Atividades Transversais\n\nNas Atividades (iniciais) Transversais (AITx) encontrará perguntas de escolha múltipla e de resposta descritiva. \nNenhuma das questões é de resposta obrigatória."]
[]
[]
[]
[null,"AIT1 \nDados gerais da empresa"]
[]
[]
[null,null,null,"AIT1.1 - Peso da cortiça transformada anual (ton)"]
[]
[]
[null,null,null,"AIT1.2 Número de trabalhadores"]
[]
[]
[null,null,null,"AIT1.3 Qual o número de trabalhadores do género feminino"]
[]
[]
[null,"AIT2 \nIndústria 4.0"]
[]
[]
[null,"AIT2.1 Que tecnologias de indústria 4.0 já estão implementadas na empresa? "]
[]
[null,null,null,"AIT2.1a Internet das coisas (Internet of Things - IoT) \n(não preencher em caso de não resposta; colocar \"não\" ou \"sim\" e eventual info adicional)"]
[]
[]
[]
[null,null,null,"AIT2.1b Inteligência artificial\n(não preencher em caso de não resposta; colocar \"não\" ou \"sim\" e eventual info adicional)"]
[]
[]
[]
[null,null,null,"AIT2.1c Realidade aumentada\n(não preencher em caso de não resposta; colocar \"não\" ou \"sim\" e eventual info adicional)"]
[]
[]
[]
[null,null,null,"AIT2.1d Robótica\n(não preencher em caso de não resposta; colocar \"não\" ou \"sim\" e eventual info adicional)"]
[]
[]
[]
[null,null,null,"AIT2.1e Sistema Ciberfísicos\n(não preencher em caso de não resposta; colocar \"não\" ou \"sim\" e eventual info adicional)"]
[]
[]
[]
[null,null,null,"AIT2.1f Big data e análise de dados\n(não preencher em caso de não resposta; colocar \"não\" ou \"sim\" e eventual info adicional)"]
[]
[]
[]
[null,null,null,"AIT2.1g Blockchain\n(não preencher em caso de não resposta; colocar \"não\" ou \"sim\" e eventual info adicional)"]
[]
[]
[]
[null,null,null,"AIT2.1h Cloud Computing\n(não preencher em caso de não resposta; colocar \"não\" ou \"sim\" e eventual info adicional)"]
[]
[]
[]
[null,null,null,"AIT2.1i Cibersegurança\n(não preencher em caso de não resposta; colocar \"não\" ou \"sim\" e eventual info adicional)"]
[]
[]
[]
[null,null,null,"AIT2.1j Fabrico aditivo (impressão 3D)\n(não preencher em caso de não resposta; colocar \"não\" ou \"sim\" e eventual info adicional)"]
[]
[]
[]
[null,"AIT2.2 Assinalar em que nível de automação a empresa se encontra segundo o modelo ISA95 (nível 0 a 4)"]
[]
[]
[]
[null,null,"Nível 4\nPlaneamento \nestratégico e logística"]
[]
[]
[]
[null,null,null,null,null,null,null,null,null,null,null,null,null,null,null,null,null,null,null,"+info    "]
[]
[null,null,"Nível 3\nGestão da produção"]
[null,null,null,null,null,null,null,null,null,null,null,null,null,null,null,null,null,null,null,"+info    "]
[]
[]
[null,null,"Nível 2\nMonitorização e supervisão"]
[null,null,null,null,null,null,null,null,null,null,null,null,null,null,null,null,null,null,null,"+info    "]
[]
[]
[null,null,"Nível 1\nControlo/sensorização"]
[null,null,null,null,null,null,null,null,null,null,null,null,null,null,null,null,null,null,null,"+info    "]
[]
[]
[null,null,"Nível 0\nProcesso produtivo "]
[]
[]
[]
[]
[]
[]
[]
[]
[]
[]
[]
[]
[]
[]
[]
[]
[null,null,null,"+info"]
[null,null,null,"+info"]
[]
[null,"AIT3 \nEconomia Circular"]
[]
[]
[]
[]
[]
[]
[]
[]
[]
[]
[]
[]
[]
[]
[null,null,null,"AIT3.3 A empresa tem um sistema de reciclagem implementado? Para que materiais  (mat. escritório,…)?"]
[]
[]
[]
[]
[]
[]
[]
[]
[]
[]
[]
[]
[]
[]
[]
[]
[null,"AIT4 \nSustentabilidade ambiental"]
[]
[]
[]
[]
[]
[]
[]
[]
[]
[]
[]
[]
[]
[]
[]
[]
[]
[]
[]
[null,null,null,null,"Quantos litros de efluente gera mensalmente?"]
[]
[]
[]
[]
[]
[]
[]
[]
[]
[]
[]
[]
[]
[]
[]
[]
[null,null,null,"+info"]
[null,null,null,"+info"]
[]
[]
[]
[]
[]
[null,"AIT5 \nSustentabilidade energética"]
[]
[]
[]
[]
[]
[]
[]
[]
[]
[]
[]
[]
[]
[]
[]
[]
[]
[]
[]
[]
[]
[]
[]
[null,null,null,"Qual a potência instalada (kW)",null,null,null,null,null,null,null,false,false,null,"kW"]
[]
[]
[]
[]
[null,null,null,null,null,null,null,null,null,null,null,false,false,null,"kW"]
[]
[]
[]
[null,null,null,null,null,null,null,null,null,null,null,false,false,null,"kW"]
[]
[]
[]
[]
[]
[null,null,null,null,"(especificar diferentes níveis em diferentes etapas)"]
[]
[]
[]
[]
[]
[]
[]
[]
[]
[]
[]
[]
[null,null,null,"Observações"]
[]
[]
[]
[null,"Atividades Específicas\n\nDeve ser escolhida a opção mais evoluída existente na empresa. Algumas operações têm mais do que um grupo de escolha múltipla.\nNenhuma das questões é de resposta obrigatória."]
[]
[]
[]
[null,"A1 - Fabricação de granulados"]
[]
[]
[]
[]
[]
[]
[]
[]
[]
[]
[]
[]
[]
[]
[]
[]
[]
[]
[]
[]
[]
[]
[]
[]
[]
[]
[]
[]
[]
[]
[]
[]
[]
[]
[]
[]
[]
[]
[]
[]
[]
[]
[]
[]
[]
[]
[]
[null,null,null,"Aspetos importantes que a empresa pretende referir\nIdentificar a atividade ou operação ao qual o cometário respeita."]
[]
[]
[]
[null,"A2 - Aglomeração/prensagem/moldação/Desmoldação/Estabilização/Esquadriamento e Serragem e lixagem/acabamentos"]
[]
[]
[]
[]
[]
[]
[]
[]
[]
[]
[]
[]
[]
[null,"Preencher a matriz seguinte, indicando para cada área de negócio  as tecnologias utilizadas e o grau de maturidade na sua utilização, utilizando a escala (1- utilização experimental; 2- utilização de nível moderado/intermédio; 3- tecnologia plenamente integrada na realização desta operação)"]
[]
[]
[null,null,null,null,null,null,null,null,null,"Internet das coisas","Inteligência artificial","Realidade aumentada ou virtual","Robótica","Sistemas ciberfísicos / robotica colaborativa","Big data / análise de dados","Blockchain","Cloud computing","Cibersegurança","Fabrico aditivo (impressão 3D)","(opcional)","(opcional)","(opcional)","(opcional)","(opcional)"]
[null,"(exemplo) Área de negócio A",null,null,null,null,null,null,null,null,1,null,null,null,2,1,2,3]
[null,"Operações e Produção"]
[null,"Qualidade"]
[null,"Tecnologias de informação e comunicação"]
[null,"Logística"]
[null,"Comercial"]
[null,"Administrativo e financeiro"]
[null,"Investigação e desenvolvimento"]
[null,"(opcional)"]
[null,"(opcional)"]
[]
[]
[null,"Preencher a matriz seguinte, indicando para cada operação  as tecnologias utilizadas e o grau de maturidade na sua utilização, utilizando a escala (1- utilização experimental; 2- utilização de nível moderado/intermédio; 3- tecnologia plenamente integrada na realização desta operação)"]
[]
[]
[null,null,null,null,null,null,null,null,null,"Internet das coisas","Inteligência artificial","Realidade aumentada ou virtual","Robótica","Sistemas ciberfísicos / robotica colaborativa","Big data / análise de dados","Blockchain","Cloud computing","Cibersegurança","Fabrico aditivo (impressão 3D)","(opcional)","(opcional)","(opcional)","(opcional)","(opcional)"]
[null,"(exemplo) Operação A",null,null,null,null,null,null,null,3,2,null,1,null,1]
[null,"Trituração/granulação"]
[null,"Estabilização"]
[null,"Lixagem"]
[null,"Laminagem"]
[null,"Moldação por compressão"]
[null,"Moldação por injecção"]
[null,"Moldação por prensagem"]
[null,"Moldação em estufas "]
[null,"Moldação em estufas de alta frequencia"]
[null,"Inspecção visual com visão artificial"]
[null,"Maquinação CNC"]
[null,"Corte de alta precisão a laser"]
[null,"Gravação laser"]
[null,"(opcional)"]
[null,"(opcional)"]
[null,"(opcional)"]
[null,"(opcional)"]
[null,"(opcional)"]
[null,"(opcional)"]
[null,"(opcional)"]
[null,"(opcional)"]
[null,"(opcional)"]
[null,"(opcional)"]
[null,"(opcional)"]
[]
[]
[null,null,null,"Observações (indicar/descrever outras tecnologias utilizadas no(s) processo(s) de fabrico)"]
[]
[]
[]
[null,"Atividades Transversais finais\n\nNas Atividades (finais) Transversais (AFTx) encontrará perguntas de escolha múltipla e de resposta descritiva. \nNenhuma das questões é de resposta obrigatória."]
[]
[]
[]
[null,null,null,"AFT1 Que outras atividades a empresa realiza que não estão contempladas neste questionário?"]
[]
[]
[]
[null,null,null,"AFT2 Se não tivesse quaisquer limitações financeiras, quais seriam as 3 operações prioritárias para o investimento da empresa no seu apetrechamento tecnológico?"]
[]
[]
[]
[]
[]
[]
[]
[]
[]
[]
[]
[]
[]
[]
[]
[]
[]
[]
[]
[]
[]
[]
[]
[]
[]
[]
[null,null,null,"AFT6 Em que atividades / operações é que a empresa considera que a oferta tecnológica atualmente disponível no mercado não corresponde às necessidades que espera ter nos próximos anos? "]
[]
[]
[]
[]
[]
[]
[]
[]
[]
[]
[null,null,null,"Aspetos gerais importantes que a empresa pretende referir"]
[]
[]
[]
[null,null,null,null,null,null,null,null,null,null,null,null,null,null,null,null,null,null,null,"Obrigado pela sua colaboração!"]

{"sheet":"result","index":1,"n_rows":243,"n_cols":2,"rows_kept":243,"cut":false,"hidden":true,"merged":[]}
["Empresa",{"$f":"QUESTIONARIO!N18","v":0}]
["Técnico",{"$f":"QUESTIONARIO!N20","v":0}]
["AIT1.1a",{"$f":"QUESTIONARIO!D30","v":0}]
["AIT1.1b",{"$f":"QUESTIONARIO!#REF!","v":{"$error":"#REF!"}}]
["AIT1.2",{"$f":"QUESTIONARIO!D33","v":0}]
["AIT1.3",{"$f":"QUESTIONARIO!D36","v":0}]
["AIT2.1a",{"$f":"QUESTIONARIO!D44","v":0}]
["AIT2.1b",{"$f":"QUESTIONARIO!D48","v":0}]
["AIT2.1c",{"$f":"QUESTIONARIO!D52","v":0}]
["AIT2.1d",{"$f":"QUESTIONARIO!D56","v":0}]
["AIT2.1e",{"$f":"QUESTIONARIO!D60","v":0}]
["AIT2.1f",{"$f":"QUESTIONARIO!D64","v":0}]
["AIT2.1g",{"$f":"QUESTIONARIO!D68","v":0}]
["AIT2.1h",{"$f":"QUESTIONARIO!D72","v":0}]
["AIT2.1i",{"$f":"QUESTIONARIO!D80","v":0}]
["AIT2.2"]
["AIT2.3"]
["AIT3.1"]
["AIT3.1_sim",{"$f":"QUESTIONARIO!E131","v":0}]
["AIT3.2"]
["AIT3.2_outro",{"$f":"QUESTIONARIO!H138","v":0}]
["AIT3.3",{"$f":"QUESTIONARIO!D141","v":0}]
["AIT3.4"]
["AIT3.4_sim",{"$f":"QUESTIONARIO!E147","v":0}]
["AIT3.5"]
["AIT3.5_sim",{"$f":"QUESTIONARIO!E153","v":0}]
["AIT3.6",0]
["AIT4.1"]
["AIT4.1_outro",{"$f":"QUESTIONARIO!H163","v":0}]
["AIT4.2"]
["AIT4.3"]
["AIT4.3_outro",{"$f":"QUESTIONARIO!H175","v":0}]
["AIT4.3_qtd eflu",{"$f":"QUESTIONARIO!M177","v":0}]
["AIT4.4"]
["AIT4.5"]
["AIT4.6"]
["AIT4.7"]
["AIT4.8"]
["AIT5.1"]
["AIT5.2"]
["AIT5.2_não",{"$f":"QUESTIONARIO!I211","v":0}]
["AIT5.3"]
["AIT5.4"]
["AIT5.4_biomass",{"$f":"QUESTIONARIO!#REF!","v":{"$error":"#REF!"}}]
["AIT5.4_outro",{"$f":"QUESTIONARIO!#REF!","v":{"$error":"#REF!"}}]
["AIT5.5_biomass"]
["AIT5.5_biomass.qual",{"$f":"QUESTIONARIO!H220","v":0}]
["AIT5.5_fotovolt"]
["AIT5.5_termica"]
["AIT5.5_outro"]
["AIT5.5_outro.qual",{"$f":"QUESTIONARIO!H223","v":0}]
["AIT5.5_pot",{"$f":"QUESTIONARIO!K225","v":0}]
["AIT5.6"]
["AIT5.6_sim",{"$f":"QUESTIONARIO!K230","v":0}]
["AIT5.7"]
["AIT5.7_sim",{"$f":"QUESTIONARIO!K234","v":0}]
["AIT5.8"]
["AIT5.8_detail",{"$f":"QUESTIONARIO!E241","v":0}]
["AIT5.9"]
["AIT5.10"]
["AIT6.1",{"$f":"QUESTIONARIO!#REF!","v":{"$error":"#REF!"}}]
["AIT6.2",{"$f":"QUESTIONARIO!#REF!","v":{"$error":"#REF!"}}]
["AIT6.3",{"$f":"QUESTIONARIO!#REF!","v":{"$error":"#REF!"}}]
["AIT_Observacoes",{"$f":"QUESTIONARIO!D254","v":0}]
["A1O1",3]
["A1O2.1"]
["A1O2.2"]
["A1O2.3"]
["A1O3"]
["A1O4"]
["A1O5"]
["A1O6"]
["A1O7"]
["A1O8"]
["A1O9"]
["A1O_Observacoes",{"$f":"QUESTIONARIO!#REF!","v":{"$error":"#REF!"}}]
["A2O1"]
["A2O2"]
["A2O3"]
["A2O4"]
["A2O5"]
["A2O6"]
["A2O7"]
["A2O8"]
["A2O_Observacoes",{"$f":"QUESTIONARIO!D310","v":0}]
["A3O1"]
["A3O2"]
["A3O3"]
["A3O4"]
["A3O5"]
["A3O6"]
["A3O6_mes"]
["A3O7"]
["A3O8"]
["A3O8_MES"]
["A3O9"]
["A3O9_RAIOX"]
["A3O9_MES"]
["A3O10"]
["A3O11"]
["A3O12"]
["A3O12_VOL"]
["A3O_Observacoes",{"$f":"QUESTIONARIO!#REF!","v":{"$error":"#REF!"}}]
["A4O1"]
["A4O2"]
["A4O3"]
["A4O4"]
["A4O5"]
["A4O5_informat"]
["A4O5_costa"]
["A4O6"]
["A4O6_informat"]
["A4O7"]
["A4O8"]
["A4O8_AIO"]
["A4O8_diam"]
["A4O8_comp"]
["A4O8_topos"]
["A4O8_despoeir"]
["A4O8_informat"]
["A4O8_parametr"]
["A4O9"]
["A4O9_raiox"]
["A4O9_informat"]
["A4O10"]
["A4O11"]
["A4O12"]
["A4O12_vol"]
["A4O_Observacoes",{"$f":"QUESTIONARIO!#REF!","v":{"$error":"#REF!"}}]
["A6O1"]
["A6O2"]
["A6O3"]
["A6O4"]
["A6O4_AIO"]
["A6O4_diam"]
["A6O4_comp"]
["A6O4_topos"]
["A6O4_despoeir"]
["A6O4_informat"]
["A6O4_parametr"]
["A6O5"]
["A6O5_raiox"]
["A6O5_mes"]
["A6O6"]
["A6O7"]
["A6O8"]
["A6O8_vol"]
["A6O8_Observacoes",{"$f":"QUESTIONARIO!#REF!","v":{"$error":"#REF!"}}]
["A7O1"]
["A7O2"]
["A7O2_RAIOX"]
["A7O2_MES"]
["A7O3"]
["A7O4"]
["A7O5"]
["A7O5_AIO"]
["A7O5_diam"]
["A7O5_comp"]
["A7O5_topos"]
["A7O5_despoeir"]
["A7O5_informat"]
["A7O5_parametr"]
["A7O6"]
["A7O6_RAIOX"]
["A7O6_MES"]
["A7O7"]
["A7O8.1"]
["A7O8.2"]
["A7O8.2_VOL"]
["A7O_Observaçoes",{"$f":"QUESTIONARIO!#REF!","v":{"$error":"#REF!"}}]
["A10O1"]
["A10O2"]
["A10O3"]
["A10O4"]
["A10O5"]
["A10O5_raiox"]
["A10O5_informat"]
["A10O6"]
["A10O7.1"]
["A10O7.2"]
["A10O7.2_vol"]
["A10O_Observacoes",{"$f":"QUESTIONARIO!#REF!","v":{"$error":"#REF!"}}]
["A11O1"]
["A11O2"]
["A11O3"]
["A11O4"]
["A11O4_raiox"]
["A11O4_informat"]
["A11O5"]
["A11O6.1"]
["A11O6.2"]
["A11O6.2_vol"]
["A11O_Observacoes",{"$f":"QUESTIONARIO!#REF!","v":{"$error":"#REF!"}}]
["A12O1"]
["A12O2"]
["A12O3"]
["A12O4"]
["A12O4_raiox"]
["A12O4_informat"]
["A12O5"]
["A12O6.1"]
["A12O6.2"]
["A12O6.2_vol"]
["A12O_Observacoes",{"$f":"QUESTIONARIO!#REF!","v":{"$error":"#REF!"}}]
["A14O1"]
["A14O2"]
["A14O3"]
["A14O3_raiox"]
["A14O3_informat"]
["A14O4"]
["A14O4_informat"]
["A14O4_tinta"]
["A14O4_fogo"]
["A14O4_laser"]
["A14O4_fogo/eletr"]
["A14O4_indução"]
["A14O5"]
["A14O5_informat"]
["A14O6"]
["A14O6_cquali"]
["A14O6_informat"]
["A14O7"]
["A14O7_%",{"$f":"QUESTIONARIO!#REF!","v":{"$error":"#REF!"}}]
["A14O8.1"]
["A14O8.2"]
["A14O8.2_vol"]
["A14O_Observacoes",{"$f":"QUESTIONARIO!D375","v":0}]
["AFT1",{"$f":"QUESTIONARIO!D383","v":0}]
["AFT2",{"$f":"QUESTIONARIO!D387","v":0}]
["AFT3"]
["AFT3_sim",{"$f":"QUESTIONARIO!E393","v":0}]
["AFT4"]
["AFT4_sim",{"$f":"QUESTIONARIO!E399","v":0}]
["AFT5_financeiras"]
["AFT5_soluções"]
["AFT5_gestao"]
["AFT5_operadores"]
["AFT5_desnecessar"]
["AFT5_outras"]
["AFT5_outras_desc",{"$f":"QUESTIONARIO!G409","v":0}]
["AFT6",{"$f":"QUESTIONARIO!D414","v":0}]
["AFT7"]
["Observações",{"$f":"QUESTIONARIO!D425","v":0}]